Cogmind - Beta 13 @@@ ROGUE MODE // 2024.04.01 @ 23:40:09 Player: Uncover Result: Destroyed by Y-45 Defender with Beam Rifle Performance ------------- Evolutions (1) 500 Regions Visited (3) 600 Robots Destroyed (38) 190 Value Destroyed (1121) 1121 Prototype IDs (6) 120 Alien Tech Used (0) 0 Bonus (0) 0 TOTAL SCORE: 2531 Bonus ------- None Cogmind --------- Core Integrity 0/400 Matter 300/300 Energy 100/100 System Corruption 1% Temperature Cool (13) Movement Flying (40) Location -9/Storage Parts ------- > --- POWER (2) -------- (None) > --- PROPULSION (3) --- Flight Unit > --- UTILITY (2) ------ Signal Interpreter Terrain Scan Processor > --- WEAPON (2) ------- Scythe > --- INVENTORY (5) ---- Sensor Array Mining Claw Scythe Scythe Peak State ------------ > --- POWER ------------ Light Ion Engine Heavy Ion Engine > --- PROPULSION ------- Light Treads Improved Treads Improved Treads > --- UTILITY ---------- Sensor Array Signal Interpreter > --- WEAPON ----------- Scythe Scythe > --- INVENTORY -------- Light Ion Engine Terrain Scan Processor Mining Claw Scythe Scythe [Rating: 18] Favorites ----------- Power Ion Engine Engine Ion Engine Propulsion Light Treads Treads Light Treads Leg Aluminum Leg Flight Unit Flight Unit Utility Signal Interpreter Device Sensor Array Storage Large Battery Processor Signal Interpreter Weapon Scythe Energy Gun Small Laser Slashing Weapon Scythe Build | -11 -10 -9 -9 ------- Run | Yrd Mat Mat Sto Slots Evolved 2 | . . 2 . Power 1 | . . 1 . Propulsion 1 | . . 1 . Utility . | . . . . Weapon . | . . . . Parts Attached 39 | 5 14 17 3 Power 10 | 1 2 5 2 Engine 10 | 1 2 5 2 Core . | . . . . Reactor . | . . . . Propulsion 12 | 2 3 6 1 Treads 7 | 2 2 3 . Leg 3 | . . 3 . Wheel . | . . . . Hover . | . . . . Flight 2 | . 1 . 1 Utility 6 | . 4 2 . Device 3 | . 2 1 . Storage 1 | . 1 . . Processor 2 | . 1 1 . Hackware . | . . . . Protection . | . . . . Artifact . | . . . . Weapon 11 | 2 5 4 . Energy Gun 6 | 2 4 . . Energy Cannon . | . . . . Ballistic Gun . | . . . . Ballistic Cannon . | . . . . Launcher . | . . . . Special Weapon . | . . . . Impact Weapon . | . . . . Slashing Weapon 5 | . 1 4 . Piercing Weapon . | . . . . Special Melee Weapon . | . . . . Unidentified Prototypes . | . . . . Parts Lost 13 | . 3 3 7 Power 6 | . . 3 3 Propulsion 5 | . 2 . 3 Utility 1 | . 1 . . Weapon 1 | . . . 1 Highest Loss Streak 4 | . 3 1 4 To Critical Strikes . | . . . . Average Slot Usage (%) 85 | . 81 86 91 Engine 17 | . 14 18 20 Treads 16 | . 16 11 24 Leg 4 | . . 10 . Flight 2 | . 2 2 2 Device 6 | . 4 10 . Storage 2 | . 6 . . Processor 12 | . 8 11 22 Energy Gun 11 | . 26 5 . Slashing Weapon 11 | . . 16 21 Naked Turns . | . . . . Heaviest Build 18 | 7 11 18 15 Greatest Support 66 | 40 4 66 66 Greatest Overweight (x) 5 | 2 3 5 3 Average Overweight (x) . | 1 1 . . Largest Inventory Capacity 5 | 5 5 5 5 Average Capacity 5 | 5 5 5 5 Most Carried 5 | 5 5 5 5 Average Carried 3 | 1 3 3 4 Final Capacity 5 | 5 5 5 5 Final Carried 5 | 1 4 5 4 Class Distribution -------------------- 68% | Mutant 31% | Scavenger-Mutant Dominant Class ---------------- Mutant | -10/Materials Mutant | -9/Materials Scavenger-Mutant | -9/Storage Resources | -11 -10 -9 -9 ----------- Run | Yrd Mat Mat Sto Matter Collected 575 | 250 140 165 20 Remotely . | . . . . Salvage Created 1379 | . 425 645 309 Parts 91 | . 21 45 25 Haulers Intercepted . | . . . . Recyclers Shooed . | . . . . Parts Field Recycled . | . . . . Retrieved Matter . | . . . . Parts Self-Destructed . | . . . . Prevented . | . . . . Kills | -11 -10 -9 -9 ------- Run | Yrd Mat Mat Sto Combat Hostiles Destroyed 31 | . 9 14 8 Melee 20 | . . 12 8 Guns 11 | . 9 2 . Classes Destroyed 6 | . 2 4 . Worker 2 | . . 2 . Builder 1 | . . 1 . Watcher 4 | . 1 3 . Swarmer 5 | . . 3 2 Grunt 19 | . 9 7 3 Sentry 7 | . . 4 3 Best Kill Streak 5 | . 3 5 4 Combat Bots Only 4 | . 3 3 4 Max Kills in Single Turn 1 | . 1 1 1 Gunslinging . | . . . . Exploded . | . . . . Melee 1 | . . 1 1 Uniques/NPCs Destroyed . | . . . . Combat | -11 -10 -9 -9 -------- Run | Yrd Mat Mat Sto Hostile Shots Fired 238 | . 59 88 91 Missed 65 | . 15 24 26 Damage Taken 2064 | . 554 736 774 Core 481 | . 70 166 245 Absorbed by Shields . | . . . . Regen/Repaired (Parts) 21 | . 21 . . Core Remaining (%) 86 | 100 72 . . Volleys Fired 43 | . 36 7 . Largest 2 | . 2 2 . Hottest 80 | . 80 80 . Shots Fired 86 | . 72 14 . Gun 86 | . 72 14 . Cannon . | . . . . Launcher . | . . . . Special . | . . . . Kinetic . | . . . . Thermal 86 | . 72 14 . Explosive . | . . . . Electromagnetic . | . . . . Robot Hit Streak 8 | . 8 4 . Robot Miss Streak 3 | . 2 3 . Penetration Max . | . . . . Secondary Targets 2 | . 2 . . Max Gunslinging Chain 1 | . 1 . . Shots Hit Robots 122 | . 57 43 22 Core Hits 50 | . 22 22 6 Critical Kills . | . . . . Critical Parts Destroyed . | . . . . Critical Strikes 5 | . . 2 3 Sever 5 | . . 2 3 Melee Attacks 90 | . 2 57 31 Impact . | . . . . Slashing 90 | . 2 57 31 Piercing . | . . . . Sneak Attacks 5 | . . 5 . Combat Hostiles . | . . . . Follow-up Attacks 14 | . . 11 3 Damage Inflicted 2675 | . 640 1354 681 Guns 717 | . 640 77 . Cannons . | . . . . Explosions . | . . . . Melee 1958 | . . 1277 681 Ramming . | . . . . Kinetic . | . . . . Thermal 717 | . 640 77 . Explosive . | . . . . Electromagnetic . | . . . . Impact . | . . . . Slashing 1958 | . . 1277 681 Piercing . | . . . . Highest Corruption 1 | . 1 . 1 Average Corruption 1 | . 1 . 1 Corruption Purged . | . . . . Corruption Blocked . | . . . . Effects 1 | . . . 1 Heat Flow Errors 1 | . . . 1 Overload Shots . | . . . . Overflow Damage 94 | . . 71 23 Projectiles . | . . . . Explosions . | . . . . Melee 94 | . . 71 23 Knockbacks . | . . . . Impact . | . . . . Kinetic . | . . . . Secondary . | . . . . Self-Inflicted Damage . | . . . . Shots . | . . . . Rammed . | . . . . Targets Rammed . | . . . . Kicked . | . . . . Crushed . | . . . . Highest Temperature 282 | . 279 216 282 Average Temperature 98 | . 86 121 122 Received Heat Transfer 834 | . 321 261 252 Effects 1 | . . . 1 Energy Bleed 1 | . . . 1 Siege Activations . | . . . . Robots Corrupted . | . . . . Combat Hostiles . | . . . . Parts Fried . | . . . . Impact Corruptions . | . . . . Robots Melted . | . . . . Combat Hostiles . | . . . . Parts Melted 2 | . 1 1 . Heat Transferred 1625 | . 1450 175 . Parts Sabotaged . | . . . . Parts Stolen . | . . . . Parts Stripped . | . . . . Power Chain Reactions . | . . . . Alert | -11 -10 -9 -9 ------- Run | Yrd Mat Mat Sto Peak Influence 372 | . 227 319 372 Initial 134 | . . 33 134 Average 138 | . 78 132 271 Maximum Alert Level 1 | . 1 1 1 Low Security (%) 75 | 100 97 82 21 Level 1 24 | . 2 17 78 Level 2 . | . . . . Level 3 . | . . . . Level 4 . | . . . . Level 5 . | . . . . High Security . | . . . . Max Security . | . . . . Squads Dispatched 6 | . 4 . 2 Investigation 6 | . 4 . 2 Extermination . | . . . . Reinforcement . | . . . . Assault . | . . . . Garrison . | . . . . Intercept . | . . . . Searches Triggered . | . . . . Construction Impeded . | . . . . Haulers Reinforced . | . . . . Active Scanning Responses . | . . . . Cargo Convoy Interrupts . | . . . . Stealth | -11 -10 -9 -9 --------- Run | Yrd Mat Mat Sto Distress Signals 6 | . 2 4 . Communications Jammed . | . . . . Distress Signals . | . . . . Times Spotted 56 | . 13 27 16 Peak Tracking Total 5 | . 3 4 5 Tactical Retreats 5 | . . 3 2 Traps | -11 -10 -9 -9 ------- Run | Yrd Mat Mat Sto Traps Triggered 3 | . 1 . 2 Indirectly . | . . . . Trap Hack Attempts . | . . . . Triggered . | . . . . Disarmed . | . . . . Reprogrammed . | . . . . Reused . | . . . . Traps Extracted . | . . . . Installed . | . . . . Triggered . | . . . . Machines | -11 -10 -9 -9 ---------- Run | Yrd Mat Mat Sto Machines Disabled . | . . . . Max in Single Turn . | . . . . Machines Repaired . | . . . . Machines Dismantled . | . . . . Machines Sabotaged . | . . . . Overloaded Fab Kills . | . . . . Hacking | -11 -10 -9 -9 --------- Run | Yrd Mat Mat Sto Machines Accessed 12 | . 8 1 3 Terminals 10 | . 6 1 3 Fabricators . | . . . . Repair Stations 1 | . 1 . . Recycling Units 1 | . 1 . . Scanalyzers . | . . . . Garrison Access . | . . . . Total Hacks 47 | . 34 3 10 Successful 29 | . 21 3 5 Failed 18 | . 13 . 5 Catastrophic 2 | . 2 . . Database Lockouts . | . . . . Manual . | . . . . Terminals 40 | . 27 3 10 Fabricators . | . . . . Repair Stations 3 | . 3 . . Recycling Units 4 | . 4 . . Scanalyzers . | . . . . Garrison Access . | . . . . Terminal Hacks 25 | . 17 3 5 Record 2 | . 1 1 . Part Schematic 1 | . . . 1 Prototype ID Bank 6 | . 5 . 1 Emergency Access Points 1 | . 1 . . Terminal Index 1 | . 1 . . Scanalyzer Index 1 | . . . 1 Alert Level 3 | . 3 . . Locate Traps 2 | . . . 2 Dispatch Records 1 | . 1 . . Surveillance Status 1 | . 1 . . Hauler Manifests 2 | . 1 1 . Registered Components 1 | . 1 . . Registered Prototypes 1 | . 1 . . Zone Layout 2 | . 1 1 . Fabricator Hacks . | . . . . Repair Station Hacks 2 | . 2 . . Scan Component 1 | . 1 . . Repair 1 | . 1 . . Recycling Unit Hacks 2 | . 2 . . Report Inventory 1 | . 1 . . Retrieve Components 1 | . 1 . . Scanalyzer . | . . . . Garrison Access Hacks . | . . . . Unauthorized Hacks . | . . . . Terminals . | . . . . Fabricators . | . . . . Repair Stations . | . . . . Recycling Units . | . . . . Scanalyzers . | . . . . Garrison Access . | . . . . Data Cores Recovered . | . . . . Used . | . . . . Hacking Detections 11 | . 7 1 3 Full Trace Events 9 | . 6 . 3 Feedback Events 2 | . 1 . 1 Corruption 2 | . 1 . 1 Feedback Blocked . | . . . . Robot Schematics Acquired . | . . . . Robots Built . | . . . . Authchips . | . . . . Time . | . . . . Total Robot Build Rating . | . . . . Part Schematics Acquired 1 | . . . 1 Parts Built . | . . . . Authchips . | . . . . Time . | . . . . Total Part Build Rating . | . . . . Parts Repaired 1 | . 1 . . Time 26 | . 26 . . Parts Recycled . | . . . . Recycled Matter . | . . . . Retrieved Matter . | . . . . Retrieved Components . | . . . . Parts Scanalyzed . | . . . . Part Schematics Acquired . | . . . . Parts Damaged . | . . . . Bothacking | -11 -10 -9 -9 ------------ Run | Yrd Mat Mat Sto Used RIF Installer . | . . . . Robots Hacked . | . . . . Non-combat . | . . . . Combat . | . . . . Robot Hacks Applied . | . . . . Relay Couplers Released . | . . . . Fabnet Peak Effective % . | . . . . Robots Rewired . | . . . . Allies Hacked . | . . . . Hacks Repelled . | . . . . Allies | -11 -10 -9 -9 -------- Run | Yrd Mat Mat Sto Total Allies . | . . . . Largest Group . | . . . . Highest-Rated Group . | . . . . Highest-Rated Ally . | . . . . Total Orders . | . . . . Ally Attacks . | . . . . Total Damage . | . . . . Kills . | . . . . Allies Corrupted . | . . . . Allies Melted . | . . . . Intel | -11 -10 -9 -9 ------- Run | Yrd Mat Mat Sto Robot Analysis Total . | . . . . Derelict Logs Recovered . | . . . . Drone Launches . | . . . . Drone Recoveries . | . . . . Exploration | -11 -10 -9 -9 ------------- Run | Yrd Mat Mat Sto Turns Passed 1934 | 61 671 796 406 Spaces Moved 1019 | 46 358 422 193 Core 314 | 42 267 3 2 Treads 312 | 4 . 156 152 Legs 203 | . . 203 . Wheels . | . . . . Hover . | . . . . Flight 190 | . 91 60 39 Fastest Speed 40 | 50 100 120 40 Average Speed 149 | 110 146 147 170 Slowest Speed 300 | 160 200 300 280 Overloaded Moves . | . . . . Propulsion Burnouts . | . . . . Robots Hopped . | . . . . Cave-ins Triggered . | . . . . Exploration Rate (%) 32 | 4 48 32 47 Regions Visited 3 Branch Regions 1 Pre-discovered Areas . | . . . . Known Exits Taken 2 | . 1 1 . Unknown Exits Taken 1 | 1 . . . Scrap Searched . | . . . . Spaces Dug 1 | . 1 . . Terrain Destroyed 1 | . 1 . . Melee 1 | . 1 . . Projectile . | . . . . AOE . | . . . . Terrain Rammed . | . . . . Walls Destroyed . | . . . . Machines Disabled . | . . . . Actions | -11 -10 -9 -9 --------- Run | Yrd Mat Mat Sto Total 1237 | 56 431 521 229 Wait . | . . . . Move 1016 | 45 357 421 193 Hop . | . . . . Pick Up 44 | 6 14 21 3 Fast Attach . | . . . . Attach 33 | 5 12 13 3 Detach 2 | . 2 . . Swap 6 | . 2 4 . Drop 22 | . 6 14 2 Fire 43 | . 36 7 . Melee 71 | . 2 41 28 Ram . | . . . . Kick . | . . . . Crush . | . . . . Escape Stasis . | . . . . Rewire . | . . . . Trap . | . . . . Miscellaneous . | . . . . Route ------- -11/Scrapyard -10/Materials -9/Materials (discovered 3 exits: [*Mat] / [*Min] / *Sto) -9/Storage History --------- Turn | Location | Event 2 | -11/Scrapyard | Met Revision 17 11 | -11/Scrapyard | Discovered new exit (range 16) 62 | -11/Scrapyard | Entered Materials 328 | -10/Materials | Build established: Mutant 373 | -10/Materials | Repaired Sml. Laser 547 | -10/Materials | Lost 3 parts (2n1u) 725 | -10/Materials | Discovered new exit (range 3) 732 | -10/Materials | Identified exit to Materials 733 | -10/Materials | Entered another Materials area 733 | -9/Materials | Evolved 2 slots: Power x1, Propulsion x1 1111 | -9/Materials | Discovered new exit (range 15) 1493 | -9/Materials | Discovered new exit (range 10) 1515 | -9/Materials | Discovered new exit (range 6) 1525 | -9/Materials | Identified exit to Storage 1529 | -9/Materials | Entered Storage 1693 | -9/Storage | Core integrity fell below 50% 1862 | -9/Storage | Lost 4 parts (1p3n) 1923 | -9/Storage | Core integrity fell below 20% 1935 | -9/Storage | Destroyed by Y-45 Defender with Beam Rifle Last Messages --------------- An explosion rips through the floor. U-05 Engineer lays Concrete. Triggered Alarm Trap. An alarm sounds. ALERT: Alarm triggered, dispatching investigation squad. U-05 Engineer lays Concrete. U-05 Engineer builds a Wall. U-05 Engineer lays Concrete. Lgt. Ion Engine destroyed. U-05 Engineer lays Concrete. S-10 Pest Lgt. Assault Rifle severed. U-05 Engineer lays Concrete. U-05 Engineer builds a Wall. U-05 Engineer lays Concrete. Critical hit (Burn: +37). Scythe destroyed. R-06 Scavenger collects Lgt. Assault Rifle. Imp. Ion Engine destroyed. Critical hit (Burn: +37). Map ----- +----------------------------------------------------+ | ?????????????????????????????????????????????????? | | ?????????????????????????????????????????????????? | | ?????????????????????????????????????????????????? | | ?????????????????????????????????????????????????? | | ?????????????????????????????????????????????????? | | ?????????????????????????????????????????????????? | | ######???###?????????????????????????????????????? | | # ! ###T#########?????????????????????????????? | | # # ^ #?????????????????????????????? | | # """ + #?????????????????????????????? | | # """ # #?##+####?????????????????????? | | # """ ## #### + ??????????????????????? | | # ??# #???????????????????????? | | ######??# % ^ #???????????????????????? | | ?########+###### [ #???????????????????????? | | ?# #????####### + ?????????????????????? | | ?# """"" #??????????# # ?????????????????????? | | ?# "???" #??????????# #???????????????????????? | | ?# ""??" #????? ???# #???????????????????????? | | ?# "??"" #??? ""??# #???????????????????????? | | ?# "???" #?# """?# #############???????????? | | ?# """"" #?# """ #k ??????????? | | ?# #?# + ??????????? | | ?# #?# """ # ??????????? | | ###/######### """ ###;############????????????? | | ^^ / """?# @ #?????????????????? | | ^^ ###T#????? ??# T #?????????????????? | | ####+##????????###???# #?????????????????? | | ???? ??????????????# Y#????????????????? | | ????" ?????????????# =! k ##????????????????? | | ?????" #????????????# ! =! #?????????????????? | | ??????" #????????????# #?????????????????? | | ??????? #????????????# k #?????????????????? | | ????????#????????????#####/#####?????????????????? | | ?????????????????????????? ?????????????????????? | | ?????????????????????????? ?????????????????????? | | ?????????????????????????? ?????????????????????? | | ?????????????????????????? ?????????????????????? | | ?????????????????????????? #????????????????????? | | ??????????????????????????a ?????????????????????? | | ?????????????????????????? ?????????????????????? | | ?????????????????????????????????????????????????? | | ?????????????????????????????????????????????????? | | ?????????????????????????????????????????????????? | | ?????????????????????????????????????????????????? | | ?????????????????????????????????????????????????? | | ?????????????????????????????????????????????????? | | ?????????????????????????????????????????????????? | | ?????????????????????????????????????????????????? | | ?????????????????????????????????????????????????? | +----------------------------------------------------+ Best States ------------- Heat Dissipation 35 Energy Generation 19 Energy Capacity 450 Matter Stores 300 Matter Capacity 300 Sight Range 16 Robot Scan Range 14 Terrain Scan Density 85 Evasion (%) 55 Recoil Reduction 3 Item Schematics ----------------- Arm. Wheel | -9/Storage | Hacked Robot Schematics ------------------ None Fabricated ------------ Nothing Alien Tech Used ----------------- None Achievements -------------- None Challenges ------------ None Game ------ Seed BurstSalvageProjector Manual? 0 Play Time 00:23:14 Cumulative 1.5 hours Start 2024.04.01 @ 23:17:30 End 2024.04.01 @ 23:40:09 Sessions 1 Manual Loads 0 Difficulty Rogue Special Mode None Game No. 4 Rogue 4 Adventurer 0 Explorer 0 Win Type - Total 0 Types 0/0/0/0/0/0/0/0/0 Lore% 1 Gallery% 4 Achievement% 4 Wizard Run 0 Options --------- Layout 1 ASCII 0 Keyboard 0 Movement Mouse Keybinds 0 Fullscreen 1 Font 24/Smallcaps Map View 50x35 Zoom Use 0% Tactical HUD 0 Map Filters NONE Filters NONE Steam 1 RUN: 5616208f-ed23-4c42-abc6-be16de618e12